bitfinex/quotes_SOLUSD_20251223
["timestamp","ask_amount","ask_price","bid_price","bid_amount"]
[1766532391302,0.55,123.69,123.65,0.7]
[1766532391482,0.55,123.68,123.65,0.7]
[1766532394502,10.43767296,123.69,123.66,2.43940844]
[1766532394805,8.0833442,123.72,123.68,0.68]
[1766532394982,19.07101716,123.72,123.68,0.68]
[1766532395177,16.73940844,123.73,123.69,0.68]
[1766532395501,16.73940844,123.73,123.7,0.68]
[1766532395502,0.2,123.73,123.7,0.68]
[1766532395999,10.43767296,123.72,123.7,0.68]
[1766532397205,18.52054164,123.72,123.69,0.66]
[1766532397983,20.82995008,123.72,123.68,0.66]
[1766532398216,19.07054164,123.72,123.68,0.66]
[1766532398384,10.43767296,123.72,123.69,0.66]
[1766532399591,0.2,123.73,123.7,0.66]
[1766532399798,0.2,123.73,123.71,0.66]
[1766532400206,0.2,123.73,123.72,0.66]
[1766532400507,0.2,123.74,123.72,0.66]
[1766532401084,0.2,123.74,123.72,2.41940844]
[1766532401605,0.2,123.74,123.72,0.66]
[1766532403212,0.2,123.74,123.72,10.50213299]
[1766532403512,0.2,123.74,123.72,0.66]
[1766532404414,0.2,123.74,123.72,2.41940844]
[1766532405011,0.72,123.77,123.73,2.41940844]
[1766532405209,8.99838697,123.79,123.75,2.41940844]
[1766532405399,0.2,123.79,123.77,0.66]
[1766532406290,11.35767296,123.79,123.76,0.66]
[1766532406896,11.35767296,123.79,123.76,2.41940844]
[1766532407286,0.72,123.78,123.74,8.74130361]
[1766532407490,0.72,123.78,123.75,0.66]
[1766532409193,0.72,123.78,123.75,2.41940844]
[1766532409815,0.72,123.78,123.75,0.66]
[1766532413125,0.72,123.77,123.73,8.74186611]
[1766532413321,0.72,123.76,123.72,2.41940844]
[1766532413509,0.72,123.76,123.73,0.66]
[1766532414103,0.72,123.75,123.71,25.2626004]
[1766532414301,0.72,123.75,123.71,24.6026004]
[1766532414505,0.72,123.75,123.72,2.41940844]
[1766532414708,0.72,123.75,123.72,0.66]
[1766532415310,0.72,123.74,123.7,10.50298031]
[1766532419525,0.72,123.74,123.7,9.84298031]
[1766532419717,0.72,123.74,123.71,0.66]
[1766532421325,0.72,123.73,123.69,26.25082941]
[1766532421622,0.72,123.73,123.7,0.66]
[1766532421797,8.08219075,123.73,123.69,18.1663486]
[1766532422003,0.72,123.72,123.69,15.42]
[1766532428434,0.72,123.72,123.69,26.25104608]
[1766532430931,0.69,123.73,123.7,0.71]
[1766532436133,8.77104442,123.75,123.71,0.71]
[1766532436334,0.69,123.76,123.73,0.71]
[1766532437621,0.69,123.76,123.73,8.79196187]
[1766532437828,0.69,123.76,123.73,11.53831047]
[1766532438028,0.69,123.75,123.71,17.5063486]
[1766532438234,0.69,123.75,123.72,8.79270846]
[1766532438421,0.69,123.76,123.73,8.79199878]
[1766532439725,0.69,123.76,123.73,11.53834738]
[1766532441045,0.69,123.76,123.73,8.79199878]
[1766532441922,0.69,123.76,123.73,11.53834738]
[1766532443042,0.69,123.76,123.73,8.79199878]
[1766532445452,13.18402156,123.77,123.74,0.71]
[1766532445641,13.87402156,123.77,123.74,0.71]
[1766532447355,21.95360378,123.77,123.74,0.71]
[1766532449353,10.43767296,123.77,123.76,0.71]
[1766532449558,8.96869177,123.79,123.76,0.71]
[1766532449856,19.40636473,123.79,123.76,0.71]
[1766532453659,11.32767296,123.79,123.76,0.71]
[1766532453834,10.63767296,123.79,123.76,0.71]
[1766532454033,10.63767296,123.79,123.77,0.68]
[1766532455437,11.30767296,123.79,123.77,0.68]
[1766532455637,11.30767296,123.79,123.76,3.4263486]
[1766532455966,11.30767296,123.79,123.76,0.68]
[1766532457778,11.30767296,123.79,123.76,3.4263486]
[1766532457982,11.30767296,123.79,123.77,0.7]
[1766532459890,11.30767296,123.79,123.76,3.4463486]
[1766532460391,11.30767296,123.79,123.76,2.7463486]
[1766532460561,11.30767296,123.79,123.77,0.7]
[1766532462586,0.2,123.79,123.77,0.7]
[1766532462786,0.2,123.79,123.77,3.4463486]
[1766532463003,0.2,123.79,123.78,0.7]
[1766532464286,8.97695645,123.81,123.78,0.7]
[1766532464493,11.02330505,123.81,123.78,0.7]
[1766532464676,0.7,123.8,123.77,15.46]
[1766532466461,0.7,123.8,123.77,0.7]
[1766532467787,0.7,123.8,123.78,2.7463486]
[1766532467962,0.7,123.8,123.77,0.7]
[1766532468165,0.7,123.8,123.77,3.4463486]
[1766532468391,0.7,123.8,123.77,0.7]
[1766532468572,0.7,123.8,123.77,3.4463486]
[1766532469594,18.71462941,123.81,123.77,2.7463486]
[1766532469795,0.7,123.8,123.78,2.7463486]
[1766532470098,0.7,123.8,123.77,3.4463486]
[1766532471070,0.7,123.8,123.77,0.7]
[1766532471274,0.7,123.8,123.77,3.4463486]
[1766532472893,0.7,123.8,123.78,0.7]
[1766532473102,19.41462941,123.81,123.78,0.7]
[1766532474397,0.7,123.8,123.78,0.7]
[1766532475774,0.7,123.79,123.75,22.8406664]
[1766532476103,0.7,123.79,123.75,26.287015]
[1766532476477,0.7,123.79,123.75,25.587015]
[1766532476681,0.7,123.79,123.76,0.7]
[1766532477600,0.7,123.79,123.76,3.4463486]
[1766532478600,8.07780324,123.8,123.77,0.7]
[1766532478802,8.77780324,123.8,123.77,3.4463486]
[1766532479208,8.77780324,123.8,123.77,0.7]
[1766532482282,34.174665,123.81,123.78,0.7]
[1766532482498,0.7,123.8,123.78,0.7]
[1766532482883,0.7,123.8,123.77,0.7]
[1766532483493,8.77759501,123.8,123.77,0.7]
[1766532483991,0.7,123.79,123.75,10.53639732]
[1766532484204,0.7,123.79,123.75,9.83639732]
[1766532484408,0.7,123.79,123.76,0.7]
[1766532485314,25.39767296,123.81,123.77,1.75584904]
[1766532485315,18.71486842,123.81,123.77,1.75584904]
[1766532485619,0.7,123.79,123.76,2.45584904]
[1766532485789,0.7,123.79,123.76,0.7]
[1766532486811,0.7,123.79,123.75,8.79055214]
[1766532487016,0.7,123.78,123.75,2.46584904]
[1766532487202,0.7,123.78,123.76,0.71]
[1766532487811,0.7,123.78,123.74,8.08114917]
[1766532488015,0.7,123.78,123.72,11.24594971]
[1766532488016,0.7,123.77,123.72,0.71]
[1766532488222,0.7,123.75,123.72,0.71]
[1766532488690,0.7,123.75,123.72,2.46584904]
[1766532493626,0.7,123.75,123.72,10.54855891]
[1766532494010,1.75584904,123.73,123.69,0.71]
[1766532494214,1.75584904,123.73,123.69,8.79425304]
[1766532494215,2.45584904,123.73,123.69,8.79425304]
[1766532494416,0.7,123.73,123.7,0.71]
[1766532496533,2.45584904,123.73,123.7,0.71]
[1766532496826,0.7,123.72,123.69,8.79425304]
[1766532498217,2.45584904,123.73,123.7,0.71]
[1766532502625,0.7,123.72,123.69,8.08425304]
[1766532502831,2.45584904,123.73,123.7,0.71]
[1766532506141,0.7,123.73,123.7,0.71]
[1766532506319,2.45584904,123.73,123.7,0.71]
[1766532513754,0.7,123.71,123.68,8.79527999]
[1766532513926,0.7,123.71,123.68,15.47]
[1766532514622,0.68,123.69,123.66,8.75638132]
[1766532515552,0.68,123.69,123.67,0.67]
[1766532515951,0.68,123.69,123.66,8.75638132]
[1766532516143,0.68,123.69,123.66,0.67]
[1766532518764,10.43767296,123.74,123.69,0.65]
[1766532518934,8.75045078,123.76,123.73,0.65]
[1766532519132,0.67,123.76,123.73,0.65]
[1766532519356,8.75036449,123.76,123.73,0.65]
[1766532519653,10.43767296,123.75,123.73,0.65]
[1766532519954,10.43767296,123.75,123.71,1.75584904]
[1766532520163,10.43767296,123.75,123.72,0.65]
[1766532520164,0.67,123.74,123.72,0.65]
[1766532520453,11.10767296,123.75,123.72,0.65]
[1766532520758,20.94452278,123.75,123.72,0.65]
[1766532521260,19.18867374,123.75,123.72,0.65]
[1766532522057,18.51867374,123.75,123.7,22.84342915]
[1766532522361,18.51867374,123.75,123.71,0.65]
[1766532522362,0.67,123.74,123.71,0.65]
[1766532522763,20.94452278,123.75,123.71,0.65]
[1766532523763,10.43767296,123.75,123.71,8.08335358]
[1766532523966,0.67,123.79,123.75,0.65]
[1766532524277,0.67,123.78,123.74,14.76]
[1766532524567,2.42584904,123.78,123.74,2.40584904]
[1766532524938,0.67,123.77,123.74,2.40584904]
[1766532525465,0.67,123.77,123.74,0.65]
[1766532526568,8.27650482,123.82,123.77,0.65]
[1766532526861,0.67,123.79,123.76,14.76]
[1766532527157,0.67,123.79,123.76,15.41]
[1766532531771,0.67,123.8,123.76,25.24591402]
[1766532532168,0.67,123.8,123.76,23.49006498]
[1766532533473,0.67,123.8,123.76,25.24591402]
[1766532534970,0.67,123.8,123.77,2.40584904]
[1766532535373,0.67,123.8,123.77,0.65]
[1766532535551,0.67,123.8,123.77,2.40584904]
[1766532538177,19.38475981,123.81,123.77,2.40584904]
[1766532538372,0.67,123.8,123.77,2.40584904]
[1766532541982,0.67,123.8,123.77,3.3933893]
[1766532544061,0.67,123.8,123.77,0.65]
[1766532544260,0.67,123.8,123.77,3.3933893]
[1766532547683,19.37475981,123.81,123.78,3.4633893]
[1766532547995,11.29767296,123.81,123.78,3.4633893]
[1766532550190,11.29767296,123.81,123.79,2.7433893]
[1766532551377,11.29767296,123.81,123.78,3.4633893]
[1766532556805,0.66,123.8,123.78,3.4633893]
[1766532556977,19.37469075,123.81,123.78,3.4633893]
[1766532561503,18.71469075,123.81,123.78,0.72]
[1766532561707,0.66,123.8,123.78,3.4633893]
[1766532561906,0.66,123.8,123.76,0.72]
[1766532562079,0.66,123.8,123.76,2.7433893]
[1766532562278,0.66,123.8,123.76,18.2233893]
[1766532562681,0.66,123.79,123.76,18.2233893]
[1766532563205,8.07799159,123.8,123.77,0.72]
[1766532563505,0.66,123.79,123.77,0.72]
[1766532563802,0.66,123.79,123.77,2.7433893]
[1766532564008,0.66,123.8,123.77,3.4633893]
[1766532564503,0.66,123.8,123.77,0.72]
[1766532569496,0.66,123.8,123.77,3.4633893]
[1766532571014,0.66,123.8,123.77,0.72]
[1766532571208,0.66,123.8,123.77,3.4633893]
[1766532574314,0.66,123.8,123.77,11.54286819]
[1766532575403,0.66,123.8,123.78,0.7]
[1766532578514,0.66,123.8,123.77,8.77947889]
[1766532578720,0.66,123.8,123.77,11.52286819]
[1766532579016,0.66,123.8,123.77,8.77947889]
[1766532579225,0.66,123.8,123.77,11.52286819]
[1766532579396,0.66,123.8,123.77,3.4433893]
[1766532579596,8.07757123,123.8,123.77,0.7]
[1766532579791,0.66,123.79,123.76,14.76]
[1766532580097,0.66,123.79,123.77,0.7]
[1766532584227,0.66,123.78,123.73,0.7]
[1766532584411,0.66,123.78,123.75,2.7433893]
[1766532585196,0.66,123.78,123.75,3.4433893]
[1766532589028,0.66,123.78,123.75,11.52418536]
[1766532590132,0.66,123.79,123.76,0.7]
[1766532590310,0.66,123.79,123.77,2.7433893]
[1766532590508,0.66,123.79,123.77,3.4433893]
[1766532591033,8.9371607,123.81,123.77,3.4433893]
[1766532591232,0.66,123.8,123.77,3.4433893]
[1766532591442,0.66,123.8,123.78,0.7]
[1766532593546,0.66,123.8,123.77,8.77948675]
[1766532593843,0.66,123.8,123.77,11.52287605]
[1766532594043,0.66,123.8,123.78,0.7]
[1766532595749,0.66,123.8,123.77,0.7]
[1766532596324,0.66,123.8,123.77,3.4433893]
[1766532596649,0.66,123.8,123.78,0.7]
[1766532600952,0.66,123.79,123.75,15.46]
[1766532601155,0.66,123.77,123.72,14.08106226]
[1766532601451,0.66,123.75,123.72,15.46]
[1766532601652,0.66,123.75,123.72,14.76]
[1766532601855,0.66,123.74,123.7,14.76]
[1766532602055,0.66,123.73,123.69,10.54236157]
[1766532602434,1.75793692,123.75,123.71,0.7]
[1766532602637,0.66,123.74,123.7,10.54195909]
[1766532603139,0.6266468,123.73,123.7,0.7]
[1766532605858,0.6266468,123.73,123.69,10.54235876]
[1766532606350,0.6266468,123.73,123.7,8.78401943]
[1766532606573,0.66,123.74,123.71,0.7]
[1766532607770,0.66,123.74,123.7,8.08401943]
[1766532607957,0.66,123.74,123.7,8.78401943]
[1766532608470,0.66,123.73,123.69,8.08442139]
[1766532608655,0.66,123.71,123.67,8.78564134]
[1766532608973,0.66,123.71,123.68,8.78532893]
[1766532609157,0.66,123.71,123.68,10.54326585]
[1766532609773,0.66,123.71,123.68,8.78532893]
[1766532609953,0.66,123.71,123.68,8.08532893]
[1766532610654,0.66,123.71,123.68,8.78532893]
[1766532611180,0.66,123.71,123.68,0.7]
[1766532611875,0.66,123.69,123.65,0.7]
[1766532612074,0.66,123.69,123.65,25.30515146]
[1766532612274,0.66,123.69,123.66,0.7]
[1766532612465,0.66,123.7,123.67,2.45793692]
[1766532614259,11.09767296,123.71,123.68,2.45793692]
[1766532614780,24.27086282,123.75,123.69,0.7]
[1766532614960,8.73780197,123.8,123.75,0.7]
[1766532615171,0.66,123.79,123.76,2.45793692]
[1766532615479,0.2,123.81,123.77,2.45793692]
[1766532615667,0.66,123.8,123.77,0.7]
[1766532615861,0.66,123.8,123.77,1.75793692]
[1766532616355,0.66,123.8,123.78,1.75793692]
[1766532618278,0.66,123.8,123.77,2.45793692]
[1766532619280,18.71464157,123.81,123.79,2.45793692]
[1766532619281,0.2,123.81,123.79,2.45793692]
[1766532619475,0.2,123.81,123.79,0.7]
[1766532619688,0.2,123.81,123.79,1.75793692]
[1766532619854,0.2,123.81,123.78,2.45793692]
[1766532621471,0.2,123.81,123.79,1.75793692]
[1766532621855,0.2,123.81,123.8,1.75793692]
[1766532622388,0.2,123.81,123.79,2.45793692]
[1766532623556,10.43767296,123.83,123.79,8.07796665]
[1766532623783,0.2,123.84,123.82,1.75793692]
[1766532623977,0.86,123.84,123.82,1.75793692]
[1766532624177,0.86,123.84,123.81,2.21793692]
[1766532624784,0.86,123.84,123.82,1.75793692]
[1766532625986,0.86,123.84,123.81,1.75793692]
[1766532626359,0.86,123.84,123.78,0.80788495]
[1766532626360,1.75793692,123.83,123.78,0.80788495]
[1766532626588,0.66,123.83,123.79,1.75793692]
[1766532627085,0.66,123.83,123.8,1.75793692]
[1766532627786,0.86,123.84,123.81,9.83477311]
[1766532627963,0.86,123.84,123.81,2.21793692]
[1766532628662,0.86,123.84,123.81,10.29465594]
[1766532628891,0.2,123.84,123.81,10.29465594]
[1766532629186,0.2,123.84,123.81,2.21793692]
[1766532629382,0.86,123.84,123.81,2.21793692]
[1766532630101,0.86,123.84,123.81,10.29466812]
[1766532631188,0.2,123.84,123.82,2.21793692]
[1766532634385,0.2,123.84,123.82,10.29414195]
[1766532635285,0.2,123.84,123.82,8.53620503]
[1766532635477,0.2,123.84,123.82,10.29414195]
[1766532636294,0.2,123.84,123.82,8.53620503]
[1766532636466,0.2,123.84,123.82,10.29414195]
[1766532637767,1e-08,123.84,123.83,1.75793692]
[1766532637975,0.2,123.85,123.83,1.75793692]
[1766532638675,0.2,123.85,123.83,2.21793692]
[1766532639293,0.2,123.85,123.84,1.75793692]
[1766532639890,0.2,123.85,123.84,9.83287232]
[1766532640098,0.2,123.87,123.85,0.26]
[1766532640292,0.2,123.87,123.85,2.01793692]
[1766532641171,0.91,123.87,123.85,1.75793692]
[1766532642296,0.91,123.87,123.85,9.83208218]
[1766532643703,0.2,123.87,123.85,10.09208218]
[1766532643903,0.2,123.87,123.85,8.07414526]
[1766532644199,0.91,123.87,123.84,10.09260795]
[1766532644386,0.2,123.87,123.85,9.83217814]
[1766532644904,0.77513917,123.92,123.87,0.06]
[1766532645103,0.77513917,123.92,123.89,1.75793692]
[1766532645273,0.77513917,123.92,123.9,1.75793692]
[1766532646392,0.77513917,123.92,123.89,1.75793692]
[1766532646690,0.77513917,123.92,123.9,1.75793692]
[1766532646891,0.77513917,123.92,123.89,1.75793692]
[1766532647193,0.77513917,123.92,123.88,22.87180772]
[1766532647388,0.77513917,123.92,123.86,24.22063548]
[1766532647613,1.75793692,123.91,123.86,1.75793692]
[1766532647787,0.71,123.9,123.87,1.75793692]
[1766532647988,0.71,123.9,123.87,9.8307962]
[1766532649685,0.71,123.9,123.86,9.83156843]
[1766532651182,0.71,123.9,123.87,1.75793692]
[1766532651585,0.71,123.9,123.88,1.75793692]
[1766532652010,0.71,123.9,123.89,1.75793692]
[1766532652514,0.71,123.9,123.88,1.75793692]
[1766532654188,0.71,123.9,123.89,8.07167648]
[1766532654388,0.77513917,123.92,123.89,9.8296134]
[1766532654714,0.77513917,123.92,123.9,1.75793692]
[1766532656898,0.77513917,123.92,123.9,9.82886132]
[1766532657214,0.06513917,123.92,123.9,9.82886132]
[1766532657401,0.2,123.93,123.91,16.55793692]
[1766532658115,0.2,123.93,123.91,16.49793692]
[1766532658318,0.2,123.93,123.91,24.56818079]
[1766532658894,0.2,123.93,123.92,1.75793692]
[1766532659098,0.2,123.93,123.91,24.56818079]
[1766532659303,0.71,123.92,123.89,22.81146678]
[1766532659490,0.71,123.92,123.89,24.5694037]
[1766532659904,0.71,123.92,123.89,14.74]
[1766532660302,0.71,123.92,123.89,22.81164471]
[1766532660798,8.2691181,123.93,123.9,1.75793692]
[1766532660799,0.91,123.93,123.9,1.75793692]
[1766532661012,0.91,123.93,123.91,1.75793692]
[1766532662821,0.91,123.93,123.91,9.82810025]
[1766532663021,0.2,123.93,123.92,1.75793692]
[1766532663401,0.07439309,123.97,123.92,0.7]
[1766532663803,9.89889539,123.97,123.91,23.51016333]
[1766532664009,2.7369205,123.96,123.91,26.24708383]
[1766532664204,31.0440482,123.97,123.92,3.4369205]
[1766532664422,10.87787897,123.97,123.92,2.7369205]
[1766532664627,8.14095847,123.97,123.92,3.4369205]
[1766532664804,0.07439309,123.97,123.93,11.5059206]
[1766532665494,0.71,123.96,123.93,11.5059206]
[1766532666120,0.07439309,123.97,123.94,3.4369205]
[1766532666316,0.78439309,123.97,123.94,0.7]
[1766532666623,8.85087515,123.97,123.94,0.7]
[1766532667516,0.66,123.96,123.93,3.4069205]
[1766532667823,0.66,123.96,123.92,11.47636948]
[1766532668121,0.66,123.96,123.93,0.67]
[1766532670330,0.66,123.95,123.91,26.2171265]
[1766532671619,0.66,123.95,123.91,25.5471265]
[1766532671821,0.66,123.95,123.92,2.7369205]
[1766532671998,0.66,123.95,123.91,26.2171265]
[1766532672314,0.66,123.95,123.92,3.4069205]
[1766532674525,0.66,123.95,123.92,11.476617]
[1766532675723,0.73439309,123.97,123.93,3.4069205]
[1766532677625,0.73439309,123.97,123.93,11.47584203]
[1766532679209,0.73439309,123.97,123.95,2.7369205]
[1766532679409,0.07439309,123.97,123.95,3.4069205]
[1766532679923,0.07439309,123.97,123.95,11.47456256]
[1766532682332,0.07439309,123.97,123.96,10.80403892]
[1766532682528,0.66,124.01,123.97,0.67]
[1766532682733,0.66,124.0,123.97,0.67]
[1766532682936,0.66,124.0,123.96,11.47403892]
[1766532683632,0.66,124.0,123.97,0.67]
[1766532684027,0.66,124.0,123.97,2.7369205]
[1766532684614,0.66,124.0,123.97,10.80294421]
[1766532684814,0.66,124.0,123.97,11.47294421]
[1766532685309,11.09767296,124.01,123.97,10.80294421]
[1766532685512,0.66,124.03,124.0,0.67]
[1766532685836,0.66,124.03,124.0,3.4069205]
[1766532686633,0.66,124.03,124.0,2.7369205]
[1766532686832,0.66,124.03,123.99,8.73466474]
[1766532687022,0.66,124.03,123.99,11.47158524]
[1766532687220,0.66,124.02,123.98,14.74]
[1766532687428,0.66,124.01,123.98,14.74]
[1766532687750,0.66,123.99,123.96,8.06711842]
[1766532687940,0.66,123.99,123.96,10.80403892]
[1766532688139,0.66,123.99,123.96,8.06711842]
[1766532688342,0.66,123.99,123.96,10.80403892]
[1766532688845,0.66,123.99,123.96,11.47403892]
[1766532689736,0.66,123.98,123.95,10.80451625]
[1766532689920,0.66,123.98,123.94,26.21507096]
[1766532690325,0.66,123.97,123.93,2.7369205]
[1766532690827,0.66,123.97,123.93,10.80578056]
[1766532691143,0.66,124.0,123.95,2.7369205]
[1766532691329,11.09767296,123.98,123.94,3.4069205]
[1766532691642,11.09767296,123.98,123.95,2.7369205]
[1766532691842,0.66,123.98,123.95,2.7369205]
[1766532692341,0.66,123.98,123.94,11.47490253]
[1766532693330,0.66,123.98,123.95,3.4069205]
[1766532695251,0.66,123.98,123.94,11.50490253]
[1766532696150,0.66,123.98,123.95,11.50419736]
[1766532698760,0.66,123.98,123.95,10.80419736]
[1766532699436,0.69,123.99,123.96,0.69]
[1766532700753,0.69,123.99,123.96,8.75686272]
[1766532701360,0.69,123.99,123.96,11.49378322]
[1766532702653,0.69,123.99,123.96,8.75686272]
[1766532702854,11.12767296,123.99,123.96,8.75686272]
[1766532709664,0.69,123.99,123.96,8.75686272]
[1766532709866,0.69,123.99,123.96,11.49378322]
[1766532711268,0.69,124.0,123.98,2.7369205]
[1766532711440,8.75335239,124.02,123.98,3.4269205]
[1766532711768,8.75335239,124.02,123.99,2.7369205]
[1766532712138,0.69,124.01,123.99,2.7369205]
[1766532712638,0.69,124.02,123.99,3.4269205]
[1766532713668,0.69,124.02,123.99,0.69]
[1766532713849,0.69,124.02,123.99,3.4269205]
[1766532714566,0.69,124.02,123.98,11.49227612]
[1766532717386,0.69,124.02,123.98,8.75535562]
[1766532717686,0.69,124.01,123.98,11.49227612]
[1766532718680,0.69,124.03,123.98,10.80227612]
[1766532719175,0.69,124.03,123.98,11.49227612]
[1766532719560,0.69,124.03,123.98,8.06535562]
[1766532719561,0.69,124.02,123.98,8.06535562]
[1766532719770,0.69,124.02,123.98,11.49227612]
[1766532720473,0.69,124.02,123.98,10.80227612]
[1766532720779,0.69,124.01,123.98,10.80227612]
[1766532722278,0.69,124.01,123.98,11.49227612]
[1766532722470,0.69,124.0,123.96,10.80396142]
[1766532722664,0.69,124.0,123.96,11.49396142]
[1766532724065,0.69,123.99,123.96,11.49396142]
[1766532725956,0.69,123.99,123.96,10.50731337]
[1766532727551,0.69,123.99,123.96,0.69]
[1766532730481,8.75414366,124.01,123.98,0.66]
[1766532731079,11.12767296,124.01,123.98,0.66]
[1766532731264,0.69,124.0,123.97,2.41027245]
[1766532731465,0.69,124.0,123.97,17.13027245]
[1766532732090,0.69,124.0,123.97,16.47027245]
[1766532732285,0.69,124.0,123.97,14.72]
[1766532732490,0.69,123.99,123.96,10.47714848]
[1766532732792,0.69,123.99,123.95,8.06742154]
[1766532735501,2.44027245,123.99,123.95,8.06742154]
[1766532735697,0.69,123.98,123.95,8.06742154]
[1766532736293,0.69,123.96,123.92,2.41027245]
[1766532736498,0.69,123.96,123.92,25.19963139]
[1766532736700,0.69,123.96,123.92,22.78935894]
[1766532736904,0.69,123.96,123.92,24.53963139]
[1766532737288,0.69,123.96,123.92,25.19963139]
[1766532739107,0.69,123.95,123.92,14.72]
[1766532740299,0.69,123.95,123.91,10.48059723]
[1766532740809,0.69,123.95,123.91,8.73032478]
[1766532741010,0.69,123.95,123.91,10.48059723]
[1766532742007,0.69,123.94,123.91,10.48059723]
[1766532742209,0.69,123.94,123.91,2.41027245]
[1766532742409,0.69,123.94,123.9,22.7907743]
[1766532742410,0.69,123.94,123.9,16.47027245]
[1766532742606,9.81805673,123.95,123.9,16.47027245]
[1766532742607,0.69,123.93,123.9,1.75027245]
[1766532742912,11.12767296,123.95,123.91,10.48036663]
[1766532745210,0.69,123.94,123.91,10.48036663]
[1766532745714,0.69,123.94,123.91,25.22036663]
[1766532747209,0.69,123.94,123.91,22.81009418]
[1766532747385,0.69,123.94,123.9,24.56109445]
[1766532747780,0.69,123.94,123.9,25.22109445]
[1766532748391,0.69,123.94,123.9,24.56109445]
[1766532748592,0.69,123.93,123.89,9.82161119]
[1766532749294,0.69,123.93,123.89,10.4816477]
[1766532749490,18.50544398,123.95,123.91,0.66]
[1766532749687,0.69,123.94,123.9,8.73100103]
[1766532749893,0.69,123.94,123.9,1.75027245]
[1766532751311,8.0686324,123.94,123.9,1.75027245]
[1766532751490,0.69,123.93,123.9,1.75027245]
[1766532752716,0.69,123.93,123.9,2.41027245]
[1766532753193,0.69,123.93,123.9,10.48123234]
[1766532753397,0.69,123.94,123.91,2.41027245]
[1766532754395,0.69,123.94,123.91,0.66]
[1766532754718,0.69,123.94,123.9,8.07095989]
[1766532754893,0.69,123.94,123.9,10.52123234]
[1766532755092,0.69,123.94,123.9,8.77095989]
[1766532755308,0.69,123.94,123.91,1.75027245]
[1766532757916,0.69,123.94,123.91,9.82050142]
[1766532758120,0.69,123.94,123.91,10.47050142]
[1766532758322,0.66,123.96,123.92,2.40027245]
[1766532759126,0.66,123.96,123.93,1.75027245]
[1766532759422,0.66,123.96,123.93,2.40027245]
[1766532762319,0.66,123.96,123.93,1.75027245]
[1766532768229,0.66,123.96,123.92,8.7195676]
[1766532768426,0.66,123.96,123.93,1.75027245]
[1766532768834,0.66,123.96,123.92,8.7195676]
[1766532769038,0.66,123.96,123.92,10.46984005]
[1766532772843,0.66,123.95,123.92,10.46984005]
[1766532776830,0.66,123.96,123.93,2.40027245]
[1766532777825,0.66,123.96,123.94,1.75027245]
[1766532778018,19.16446519,123.97,123.94,2.40027245]
[1766532778228,18.50446519,123.97,123.94,2.40027245]
[1766532778428,0.66,123.96,123.94,1.75027245]
[1766532780530,19.16446519,123.97,123.94,2.40027245]
[1766532780938,10.43767296,123.97,123.95,2.40027245]
[1766532781841,11.09767296,123.97,123.95,2.40027245]
[1766532782546,10.43767296,123.97,123.95,2.40027245]
[1766532783130,10.43767296,123.97,123.93,8.06870185]
[1766532783324,11.09767296,123.97,123.94,0.65]
[1766532783523,11.09767296,123.97,123.94,2.40027245]
[1766532784245,11.09767296,123.97,123.95,0.65]
[1766532784544,8.7261453,123.98,123.95,2.40027245]
[1766532784745,19.16381826,123.98,123.95,2.40027245]
[1766532785265,18.50381826,123.98,123.95,2.40027245]
[1766532785450,0.66,123.97,123.95,2.40027245]
[1766532785950,0.66,123.97,123.95,1.75027245]